Cogmind - Beta 15 @@@ ROGUE MODE // 2025.05.28 @ 16:04:30 Player: BVrutally Odd Result: Destroyed by U1-MNW(R) with Subdweller Laser Performance ------------- Evolutions (0) 0 Regions Visited (2) 400 Robots Destroyed (13) 65 Value Destroyed (314) 314 Prototype IDs (0) 0 Alien Tech Used (0) 0 Bonus (0) 0 TOTAL SCORE: 779 Bonus ------- None Cogmind --------- Core Integrity 0/250 Matter 255/300 Energy 123/125 System Corruption 0% Temperature Warm (134) Movement Rolling (115) Ox1 Location -10/Subcaves Parts ------- > --- POWER (1) -------- Light Ion Engine > --- PROPULSION (2) --- Compact Wheel > --- UTILITY (2) ------ Medium Storage Unit Makeshift Light Armor Plating > --- WEAPON (2) ------- Assault Rifle Subdweller Machine Gun > --- INVENTORY (10) --- Subdweller Monowheel Seismic Detector Subdweller Laser Subdweller Laser Assault Rifle Mining Laser Makeshift Sword Peak State ------------ > --- POWER ------------ Light Ion Engine > --- PROPULSION ------- Light Treads Compact Wheel > --- UTILITY ---------- Medium Storage Unit Makeshift Light Armor Plating > --- WEAPON ----------- Assault Rifle Subdweller Machine Gun > --- INVENTORY -------- Compact Wheel Subdweller Monowheel Seismic Detector Subdweller Laser Subdweller Laser Assault Rifle Mining Laser Makeshift Sword [Rating: 12] Favorites ----------- Power Light Ion Engine Engine Light Ion Engine Propulsion Light Treads Treads Light Treads Wheel Subdweller Monowheel Utility Medium Storage Unit Device Seismic Detector Storage Medium Storage Unit Protection Light Armor Plating Weapon Assault Rifle Energy Gun Subdweller Laser Ballistic Gun Assault Rifle Build | -11 -10 -10 ------- Run | Yrd Mat Sub Slots Evolved . | . . . Power . | . . . Propulsion . | . . . Utility . | . . . Weapon . | . . . Parts Attached 19 | 7 4 8 Power 1 | 1 . . Engine 1 | 1 . . Core . | . . . Reactor . | . . . Propulsion 6 | 2 . 4 Treads 3 | 2 . 1 Leg . | . . . Wheel 3 | . . 3 Hover . | . . . Flight . | . . . Utility 7 | 2 3 2 Device 3 | 1 1 1 Storage 2 | 1 1 . Processor . | . . . Hackware . | . . . Protection 2 | . 1 1 Artifact . | . . . Weapon 5 | 2 1 2 Energy Gun 1 | . . 1 Energy Cannon . | . . . Ballistic Gun 4 | 2 1 1 Ballistic Cannon . | . . . Launcher . | . . . Special Weapon . | . . . Impact Weapon . | . . . Slashing Weapon . | . . . Piercing Weapon . | . . . Special Melee Weapon . | . . . Unidentified Prototypes . | . . . Parts Lost 7 | . 1 6 Power . | . . . Propulsion 4 | . . 4 Utility 2 | . 1 1 Weapon 1 | . . 1 Highest Loss Streak 3 | . 1 3 To Critical Strikes . | . . . Average Backups 8 | 1 6 9 Power . | . . . Propulsion 2 | 1 2 2 Utility 1 | . 1 1 Weapon 3 | . 2 4 Tool/Special . | . . . Unused Backups 5 | . . 5 Power . | . . . Propulsion . | . . . Utility . | . . . Weapon 5 | . . 5 Tool/Special . | . . . Average Slot Usage (%) 99 | . 99 99 Engine 14 | . 14 14 Treads 26 | . 28 25 Wheel 1 | . . 2 Device 10 | . 4 12 Storage 14 | . 14 14 Protection 3 | . 8 1 Energy Gun 1 | . . 2 Ballistic Gun 25 | . 28 25 Peak Build Rating 12 | 7 7 12 Average Rating 7 | 5 6 8 On Entrance 4 | . 7 7 Naked Turns . | . . . Heaviest Build 24 | 12 20 24 Greatest Support 40 | 40 40 40 Greatest Overweight (x) 1 | . . 1 Average Overweight (x) . | . . . Largest Inventory Capacity 10 | 8 10 10 Average Capacity 9 | 7 9 10 Most Carried 10 | 4 9 10 Average Carried 8 | 1 6 9 Final Capacity 10 | 8 10 10 Final Carried 9 | 4 9 7 Class Distribution -------------------- 100% | Mutant Dominant Class ---------------- Mutant | -10/Materials Mutant | -10/Subcaves Resources | -11 -10 -10 ----------- Run | Yrd Mat Sub Matter Collected 574 | 223 162 189 Remotely . | . . . Salvage Created 494 | 131 187 176 Parts 33 | 8 12 13 Haulers Intercepted 1 | . 1 . Recyclers Shooed 1 | . 1 . Parts Field Recycled . | . . . Retrieved Matter . | . . . Parts Self-Destructed 2 | . . 2 Prevented . | . . . Kills | -11 -10 -10 ------- Run | Yrd Mat Sub Combat Hostiles Destroyed 9 | . 5 4 Guns 9 | . 5 4 Classes Destroyed 6 | 2 3 1 Tunneler 2 | 2 . . Hauler 1 | . 1 . Recycler 1 | 1 . . Swarmer 2 | . 2 . Grunt 3 | . 3 . Subdweller 4 | . . 4 Best Kill Streak 2 | 2 2 2 Combat Bots Only 2 | . 2 2 Max Kills in Single Turn 1 | 1 1 1 Gunslinging . | . . . Exploded . | . . . Melee . | . . . Uniques/NPCs Destroyed . | . . . Combat | -11 -10 -10 -------- Run | Yrd Mat Sub Hostile Shots Fired 73 | . 24 49 Missed 15 | . 6 9 Hits 58 | . 18 40 Projectile 58 | . 18 40 Critical Strikes 2 | . . 2 Damage Taken 1180 | . 169 1011 Core 272 | . 25 247 Absorbed by Shields . | . . . Core Remaining (%) 100 | 100 . . Volleys Fired 44 | 5 19 20 Largest 2 | 2 2 2 Hottest 90 | 40 40 90 Shots Fired 87 | 10 38 39 Gun 87 | 10 38 39 Cannon . | . . . Launcher . | . . . Special . | . . . Kinetic 82 | 10 38 34 Thermal 5 | . . 5 Explosive . | . . . Electromagnetic . | . . . Robot Hit Streak 15 | 6 9 15 Robot Miss Streak 3 | 1 2 3 Penetration Max . | . . . Secondary Targets 3 | . 2 1 Max Gunslinging Chain 1 | . 1 1 Shots Hit Robots 65 | 6 26 33 Core Hits 23 | 4 11 8 Critical Kills . | . . . Critical Parts Destroyed . | . . . Critical Strikes . | . . . Melee Attacks . | . . . Impact . | . . . Slashing . | . . . Piercing . | . . . Sneak Attacks . | . . . Combat Hostiles . | . . . Follow-up Attacks . | . . . Damage Inflicted 956 | 64 312 580 Guns 956 | 64 312 580 Cannons . | . . . Explosions . | . . . Melee . | . . . Ramming . | . . . Kinetic 896 | 64 312 520 Thermal 60 | . . 60 Explosive . | . . . Electromagnetic . | . . . Impact . | . . . Slashing . | . . . Piercing . | . . . Highest Corruption . | . . . Average Corruption . | . . . Corruption Purged . | . . . Corruption Blocked . | . . . Overload Shots . | . . . Overflow Damage . | . . . Projectiles . | . . . Explosions . | . . . Melee . | . . . Knockbacks . | . . . Impact . | . . . Kinetic . | . . . Secondary . | . . . Self-Inflicted Damage . | . . . Shots . | . . . Rammed . | . . . Targets Rammed . | . . . Kicked . | . . . Crushed . | . . . Highest Temperature 252 | . 13 252 Average Temperature 86 | . 7 149 Received Heat Transfer 771 | . 60 711 Siege Activations . | . . . Martial Activations . | . . . Shielding Activations . | . . . Robots Disrupted . | . . . Combat Hostiles . | . . . Robots Corrupted . | . . . Combat Hostiles . | . . . Parts Fried . | . . . Impact Corruptions . | . . . Robots Melted . | . . . Combat Hostiles . | . . . Parts Melted 1 | . . 1 Heat Transferred 75 | . . 75 Parts Sabotaged . | . . . Parts Stolen . | . . . Parts Stripped . | . . . Power Chain Reactions . | . . . Alert | -11 -10 -10 ------- Run | Yrd Mat Sub Maximum Alert Level . | . . . Low Security (%) 100 | 100 100 . Level 1 . | . . . Level 2 . | . . . Level 3 . | . . . Level 4 . | . . . Level 5 . | . . . High Security . | . . . Max Security . | . . . Peak Influence 65 | 5 65 . Initial . | . . . Average 12 | 1 16 . Influence Increases 162 | 15 147 . Destroy 0b10 Robot/C 100 | . 100 . Destroy 0b10 Robot/NC 20 | 15 5 . Destroy Leader 12 | . 12 . Disable Machine 15 | . 15 . Lose Combat Pursuer 15 | . 15 . Influence Decreases 162 | 15 102 45 Entered New Map 22 | . . 22 Time Decay 140 | 15 102 23 Squads Dispatched 1 | . 1 . Investigation . | . . . Extermination . | . . . Reinforcement 1 | . 1 . Assault . | . . . Garrison . | . . . Intercept . | . . . Searches Triggered . | . . . Construction Impeded . | . . . Haulers Reinforced . | . . . Active Scanning Responses . | . . . Cargo Convoy Interrupts . | . . . Stealth | -11 -10 -10 --------- Run | Yrd Mat Sub Distress Signals 1 | . 1 . Communications Jammed . | . . . Distress Signals . | . . . Times Spotted 18 | . 12 6 Peak Tracking Total 4 | . 4 2 Tactical Retreats 1 | . 1 . Traps | -11 -10 -10 ------- Run | Yrd Mat Sub Traps Triggered 2 | . . 2 Indirectly . | . . . Trap Hack Attempts . | . . . Triggered . | . . . Disarmed . | . . . Reprogrammed . | . . . Reused . | . . . Traps Extracted . | . . . Installed . | . . . Triggered . | . . . Machines | -11 -10 -10 ---------- Run | Yrd Mat Sub Machines Disabled 1 | . 1 . Max in Single Turn 1 | . 1 . Machines Repaired . | . . . Machines Dismantled . | . . . Machines Sabotaged . | . . . Overloaded Fab Kills . | . . . Hacking | -11 -10 -10 --------- Run | Yrd Mat Sub Machines Accessed . | . . . Terminals . | . . . Fabricators . | . . . Repair Stations . | . . . Recycling Units . | . . . Scanalyzers . | . . . Garrison Access . | . . . Total Hacks . | . . . Successful . | . . . Failed . | . . . Catastrophic . | . . . Database Lockouts . | . . . Manual . | . . . Terminals . | . . . Fabricators . | . . . Repair Stations . | . . . Recycling Units . | . . . Scanalyzers . | . . . Garrison Access . | . . . Terminal Hacks . | . . . Fabricator Hacks . | . . . Repair Station Hacks . | . . . Recycling Unit Hacks . | . . . Scanalyzer . | . . . Garrison Access Hacks . | . . . Unauthorized Hacks . | . . . Terminals . | . . . Fabricators . | . . . Repair Stations . | . . . Recycling Units . | . . . Scanalyzers . | . . . Garrison Access . | . . . Data Cores Recovered . | . . . Used . | . . . Hacking Detections . | . . . Full Trace Events . | . . . Feedback Events . | . . . Feedback Blocked . | . . . Robot Schematics Acquired . | . . . Robots Built . | . . . Authchips . | . . . Time . | . . . Total Robot Build Rating . | . . . Part Schematics Acquired . | . . . Parts Built . | . . . Authchips . | . . . Time . | . . . Total Part Build Rating . | . . . Parts Repaired . | . . . Time . | . . . Parts Recycled . | . . . Recycled Matter . | . . . Retrieved Matter . | . . . Retrieved Components . | . . . Parts Scanalyzed . | . . . Part Schematics Acquired . | . . . Parts Damaged . | . . . Bothacking | -11 -10 -10 ------------ Run | Yrd Mat Sub Used RIF Installer . | . . . Robots Hacked . | . . . Non-combat . | . . . Combat . | . . . Robot Hacks Applied . | . . . Relay Couplers Released . | . . . Fabnet Peak Effective % . | . . . Robots Rewired . | . . . Allies Hacked . | . . . Hacks Repelled . | . . . Allies | -11 -10 -10 -------- Run | Yrd Mat Sub Total Allies . | . . . Largest Group . | . . . Highest-Rated Group . | . . . Highest-Rated Ally . | . . . Total Orders . | . . . Ally Attacks . | . . . Total Damage . | . . . Kills . | . . . Allies Corrupted . | . . . Allies Melted . | . . . Intel | -11 -10 -10 ------- Run | Yrd Mat Sub Active Infowar (turns) 1083 | 43 49 991 Seismic 1083 | 43 49 991 Robot Analysis Total . | . . . Derelict Logs Recovered 3 | . . 3 Drone Launches . | . . . Drone Recoveries . | . . . Exploration | -11 -10 -10 ------------- Run | Yrd Mat Sub Turns Passed 1560 | 115 308 1137 Spaces Moved 622 | 57 145 420 Core 3 | 3 . . Treads 502 | 54 145 303 Legs . | . . . Wheels 117 | . . 117 Hover . | . . . Flight . | . . . Fastest Speed 50 | 50 160 110 Average Speed 150 | 154 160 146 Slowest Speed 240 | 160 160 240 Overloaded Moves . | . . . Propulsion Burnouts . | . . . Robots Hopped . | . . . Potential Cave-ins . | . . . Cave-ins Triggered . | . . . Exploration Rate (%) 22 | 4 34 28 Regions Visited 2 Branch Regions 1 Pre-discovered Areas 2 | . . 2 Known Exits Taken . | . . . Unknown Exits Taken 2 | 1 1 . Scrap Searched 1 | . . 1 Spaces Dug . | . . . Terrain Destroyed . | . . . Melee . | . . . Projectile . | . . . AOE . | . . . Terrain Rammed . | . . . Walls Destroyed . | . . . Machines Disabled . | . . . Actions | -11 -10 -10 --------- Run | Yrd Mat Sub Total 1152 | 72 184 896 Wait 444 | . 12 432 Move 620 | 56 144 420 Hop . | . . . Pick Up 12 | 4 3 5 Fast Attach 12 | 7 2 3 Attach 4 | . . 4 Detach 1 | . 1 . Swap 9 | . 2 7 Drop 6 | . 1 5 Fire 44 | 5 19 20 Melee . | . . . Ram . | . . . Kick . | . . . Crush . | . . . Escape Stasis . | . . . Rewire . | . . . Trap . | . . . Miscellaneous . | . . . Route ------- -11/Scrapyard -10/Materials (discovered 2 exits: [*Min] / [*Sub]) -10/Subcaves (discovered 1 exit: [*Mat]) History --------- Turn | Location | Event 4 | -11/Scrapyard | Discovered new exit (range 16) 116 | -11/Scrapyard | Entered Materials 296 | -10/Materials | Discovered new exit (range 6) 308 | -10/Materials | Build established: Mutant 408 | -10/Materials | Discovered new exit (range 11) 424 | -10/Materials | Entered Subcaves 1194 | -10/Subcaves | Learned 2 Materials zone layouts 1197 | -10/Subcaves | Learned location of Zion (-7) 1197 | -10/Subcaves | Met a Zionite searching for "candidates" 1347 | -10/Subcaves | Core integrity fell below 50% 1409 | -10/Subcaves | Lost 3 parts (1n1u1w) 1452 | -10/Subcaves | Shifting Twisted Machinery released Mak. Sword 1465 | -10/Subcaves | Discovered new exit (range 8) 1542 | -10/Subcaves | Core integrity fell below 20% 1561 | -10/Subcaves | Destroyed by U1-MNW(R) with Subdweller Laser Last Messages --------------- 01378_ Lgt. Treads destroyed. 01378_ Lgt. Armor Plating destroyed. 01378_ NM-8JF(R) destroyed. 01381_ Acquired 67 matter. 01383_ Acquired 10 matter. 01383_ Subatomizers dissect the Sub. Monowheel. 01385_ Acquired Sub. Monowheel. 01387_ Acquired 10 matter. Mak. Sword falls loose from the Twisted Machinery. 01459_ Acquired Mak. Sword. 01461_ RC-4M4(u) tweaks Twisted Machinery. 01465_ EXIT=FOUND 01487_ Sub. Monowheel shoots sparks and powers down. 01553_ Com. Wheel destroyed. 01554_ Critical hit (Meltdown: +260). 01555_ Sub. Power Source melted. 01555_ HG-TV2(R) destroyed. 01555_ Lgt. Treads destroyed. Map ----- +----------------------------------------------------+ | ?????????????????????????????????????????????????? | | ?????????????????????????????????????????????????? | | ?????????????????????????????????????????????????? | | ?????????????????????????????????????????????????? | | ?????????????????????????????????????????????????? | | ?????????????????????????????????????????????????? | | ?????????????????????????????????????????????????? | | ?????????????????????????????????????????????????? | | ?????????????????????????????????????????????????? | | ?????????????????????????????????????????????????? | | ?????????????????###?????????????????????????????? | | ?????????????????# # ????????????????????????????? | | ?????????????????? #???????????????????????????? | | ??????????????????? #??????????????????????????? | | ???????????????????# ####??????????????????????? | | ??????????????????## #??????????????????????? | | ??????????????????# ??????????????????????? | | ??????????????????? ??????????????????????? | | ????????????????????? ??????????????????????? | | ?????????????????????? #??????????????????????? | | ??????????????????????? ####???????????????????? | | ????????????????????????# ##??????????????????? | | ????????????????????????# ##?????????????????? | | ????????????????????????##= ##????????????????? | | ????????????????????????##%R #????????????????? | | ????????????????????????#@ #????????????????? | | ????????????????????????# ##????????????????? | | ????????????????????????## #????????? ??????? | | ?????????????????????????# ##???????# ##????? | | ????????????????????????## ##??###?# ###??? | | ????????????????????????#"" ### ### ?? | | ????????????????????????#" ## # ??? | | ????????????????????????###"### ## ???? | | ??????????????????????????###?# ##?# #???? | | ?????????????????????##??????## ####??# ##?## | | ????????????????????##"#?????# ##????? ### | | ??????????????????###"""?????# ##????# # | | ??????????????????#"""""####### #???## ## | | ???????????????????#" " #### ##### #?# | | ??????????????????##"" " #?## ### | | ?????????????????""" """ #### ## # | | ?????????????????#""###" | | ?????????????????????###" | | ???????????????????" "" ## ### # | | ???????????????????# "" ####?## ## | | ??????????????????#" # "" ##?????####? | | ???????????????????# ####"" ##??????????? | | ?????????????????? ????### " #???????????? | | ????????????????? ???????## """ "" ##??????????? | | ????????????????????????????# " #??????????? | +----------------------------------------------------+ Best States ------------- Heat Dissipation 35 Energy Generation 10 Energy Capacity 125 Matter Stores 300 Matter Capacity 300 Sight Range 16 Terrain Scan Density 10 Armor Coverage 150 Evasion (%) 40 Recoil Reduction 2 Item Schematics ----------------- None Robot Schematics ------------------ None Fabricated ------------ Nothing Repaired ---------- Nothing Alien Tech Used ----------------- None Achievements -------------- None Challenges ------------ None Game ------ Seed BoreSignalChainsword Manual? 0 Play Time 00:06:53 Cumulative 330.3 hours Start 2025.05.28 @ 14:52:11 End 2025.05.28 @ 16:04:30 Sessions 3 Manual Loads 0 Difficulty Rogue Special Mode None Game No. 161 Rogue 98 Adventurer 16 Explorer 47 Win Type - Total 42 Types 24/5/6/1/0/1/2/1/1/1 Lore% 92 Gallery% 88 Achievement% 83 Wizard Run 0 Options --------- Layout 2 ASCII 0 Keyboard 0 Movement Mouse Keybinds 0 Fullscreen 1 Font 32/Tamsyn Map View 50x44 Zoom Use 0% Tactical HUD 1 Map Filters NONE Filters NONE Steam 1 RUN: 5d1c121a-c264-4de6-ac25-9b3a1e340268